[Event "Championnat du monde jeunes U12"]
[Date "2024.11.22"]
[White "Baturin-Vinogradov, Miroslav"]
[Black "Liu, Patrick"]
[WhiteElo "2048"]
[BlackElo "2192"]
[Round "7.7"]
[Result "0-1"]
[TimeControl "5400+30"]

1. d4 {[%clk 1:30:56]} 1... d5 {[%clk 1:30:58]} 2. c4 {[%clk 1:31:17]} 2... c6
{[%clk 1:31:23]} 3. Nf3 {[%clk 1:31:31]} 3... Nf6 {[%clk 1:31:40]} 4. e3 {[%clk
1:31:47]} 4... e6 {[%clk 1:32:05]} 5. Bd3 {[%clk 1:31:57]} 5... Nbd7 {[%clk
1:31:25]} 6. b3 {[%clk 1:30:51]} 6... Bd6 {[%clk 1:31:36]} 7. Bb2 {[%clk
1:31:09]} 7... O-O {[%clk 1:31:20]} 8. O-O {[%clk 1:31:27]} 8... Re8 {[%clk
1:28:07]} 9. Nbd2 {[%clk 1:28:50]} 9... e5 {[%clk 1:25:48]} 10. dxe5 {[%clk
1:27:21]} 10... Nxe5 {[%clk 1:25:51]} 11. Nxe5 {[%clk 1:26:21]} 11... Bxe5
{[%clk 1:26:13]} 12. Bxe5 {[%clk 1:23:50]} 12... Rxe5 {[%clk 1:26:35]} 13. Qc2
{[%clk 1:20:58]} 13... Bg4 {[%clk 1:22:46]} 14. Rfe1 {[%clk 1:13:55]} 14... dxc4
{[%clk 1:02:50]} 15. Bxc4 {[%clk 1:06:14]} 15... b5 {[%clk 0:54:37]} 16. Be2
{[%clk 1:02:53]} 16... Bxe2 {[%clk 0:49:52]} 17. Rxe2 {[%clk 1:03:03]} 17... Rc8
{[%clk 0:43:55]} 18. Nf3 {[%clk 1:01:08]} 18... Re7 {[%clk 0:41:28]} 19. Rd1
{[%clk 0:57:50]} 19... Rd7 {[%clk 0:37:43]} 20. Red2 {[%clk 0:53:20]} 20... Rxd2
{[%clk 0:35:27]} 21. Rxd2 {[%clk 0:52:41]} 21... Qc7 {[%clk 0:31:42]} 22. Nd4
{[%clk 0:46:16]} 22... g6 {[%clk 0:27:21]} 23. g3 {[%clk 0:41:19]} 23... a6
{[%clk 0:25:19]} 24. b4 {[%clk 0:35:18]} 24... c5 {[%clk 0:22:49]} 25. bxc5
{[%clk 0:33:07]} 25... Qxc5 {[%clk 0:23:00]} 26. Qxc5 Rxc5 {[%clk 0:23:28]} 27.
Nb3 {[%clk 0:32:13]} 27... Rc6 {[%clk 0:23:24]} 28. Rd8+ {[%clk 0:25:20]} 28...
Kg7 {[%clk 0:23:52]} 29. Ra8 {[%clk 0:23:07]} 29... Ne4 {[%clk 0:22:45]} 30. Nd4
{[%clk 0:20:28]} 30... Rf6 {[%clk 0:22:12]} 31. f4 {[%clk 0:18:15]} 31... Nc3
{[%clk 0:20:49]} 32. a3 {[%clk 0:14:44]} 32... Nb1 {[%clk 0:16:36]} 33. Nc2
{[%clk 0:12:55]} 33... Rc6 {[%clk 0:12:39]} 34. Nd4 {[%clk 0:10:26]} 34... Rd6
{[%clk 0:12:32]} 35. a4 {[%clk 0:07:07]} 35... bxa4 {[%clk 0:11:57]} 36. Rb8
{[%clk 0:06:24]} 36... Nc3 {[%clk 0:11:36]} 37. Rc8 {[%clk 0:02:30]} 37... Nd1
{[%clk 0:09:41]} 38. Rc4 {[%clk 0:02:06]} 38... a3 {[%clk 0:08:20]} 39. Nc2
{[%clk 0:00:43]} 39... a2 {[%clk 0:06:31]} 40. Rd4 {[%clk 0:00:34]} 40... Nxe3
{[%clk 0:06:34]} 0-1

[Variant "Standard"]
[Site "Europe Echecs"]

[Event "Championnat du monde jeunes U12"]
[Date "2024.11.22"]
[White "Diachek, Andrii"]
[Black "Mamikonyan, Artem T"]
[WhiteElo "2162"]
[BlackElo "1918"]
[Round "7.8"]
[Result "1/2-1/2"]
[TimeControl "5400+30"]

1. e4 {[%clk 1:30:52]} 1... c6 {[%clk 1:30:55]} 2. d4 {[%clk 1:30:46]} 2... d5
{[%clk 1:31:20]} 3. f3 {[%clk 1:31:09]} 3... Qb6 {[%clk 1:31:24]} 4. Nc3 {[%clk
1:30:32]} 4... dxe4 {[%clk 1:30:03]} 5. fxe4 {[%clk 1:30:27]} 5... e5 {[%clk
1:30:25]} 6. Nf3 {[%clk 1:19:25]} 6... exd4 {[%clk 1:27:20]} 7. Qxd4 {[%clk
1:18:19]} 7... Qxd4 {[%clk 1:27:13]} 8. Nxd4 {[%clk 1:18:46]} 8... Bc5 {[%clk
1:08:43]} 9. Nb3 {[%clk 1:08:18]} 9... Bb4 {[%clk 1:00:22]} 10. Bf4 {[%clk
0:59:09]} 10... Nf6 {[%clk 0:59:40]} 11. O-O-O {[%clk 0:53:01]} 11... O-O {[%clk
0:57:03]} 12. Bd6 {[%clk 0:33:25]} 12... Bxd6 {[%clk 0:56:48]} 13. Rxd6 {[%clk
0:33:53]} 13... Nbd7 {[%clk 0:56:55]} 14. Be2 {[%clk 0:31:05]} 14... Re8 {[%clk
0:54:23]} 15. Bf3 {[%clk 0:28:53]} 15... Ne5 {[%clk 0:54:01]} 16. h3 {[%clk
0:27:56]} 16... Be6 {[%clk 0:50:11]} 17. Nc5 {[%clk 0:24:53]} 17... b6 {[%clk
0:50:31]} 18. Nxe6 {[%clk 0:24:24]} 18... Rxe6 {[%clk 0:50:40]} 19. Rxe6 {[%clk
0:23:39]} 19... fxe6 {[%clk 0:50:26]} 20. Rd1 {[%clk 0:23:25]} 20... Kf7 {[%clk
0:50:26]} 21. Be2 {[%clk 0:22:31]} 21... Ke7 {[%clk 0:50:37]} 22. Kd2 {[%clk
0:21:26]} 1/2-1/2

[Variant "Standard"]
[Site "Europe Echecs"]

[Event "Championnat du monde jeunes U12"]
[Date "2024.11.22"]
[White "Wijerathna, Vinuka Dihain"]
[Black "Ambartsumian, Tyhran"]
[WhiteElo "2004"]
[BlackElo "2123"]
[Round "7.9"]
[Result "1/2-1/2"]
[TimeControl "5400+30"]

1. e4 {[%clk 1:29:47]} 1... e5 {[%clk 1:30:55]} 2. Nf3 {[%clk 1:29:53]} 2... Nc6
{[%clk 1:31:20]} 3. Bb5 {[%clk 1:30:20]} 3... a6 {[%clk 1:31:44]} 4. Ba4 {[%clk
1:30:47]} 4... Nf6 {[%clk 1:32:10]} 5. d3 {[%clk 1:31:08]} 5... b5 {[%clk
1:32:35]} 6. Bb3 {[%clk 1:31:32]} 6... Be7 {[%clk 1:32:59]} 7. a4 {[%clk
1:27:56]} 7... b4 {[%clk 1:32:24]} 8. a5 {[%clk 1:28:06]} 8... O-O {[%clk
1:30:48]} 9. O-O {[%clk 1:26:53]} 9... d6 {[%clk 1:26:02]} 10. Nbd2 {[%clk
1:22:28]} 10... Be6 {[%clk 1:18:46]} 11. Nc4 {[%clk 1:19:25]} 11... Qc8 {[%clk
1:17:14]} 12. Re1 {[%clk 1:11:41]} 12... Rb8 {[%clk 1:11:15]} 13. c3 {[%clk
1:05:59]} 13... Qb7 {[%clk 1:05:46]} 14. Bc2 {[%clk 0:54:07]} 14... b3 {[%clk
0:42:10]} 15. Bb1 {[%clk 0:54:09]} 15... Nxe4 {[%clk 0:41:55]} 16. Rxe4 {[%clk
0:51:34]} 16... d5 {[%clk 0:42:19]} 17. Re1 {[%clk 0:41:06]} 17... dxc4 {[%clk
0:32:51]} 18. dxc4 {[%clk 0:34:44]} 18... Bxc4 {[%clk 0:30:55]} 19. Nxe5 {[%clk
0:31:55]} 19... Nxe5 {[%clk 0:30:33]} 20. Rxe5 {[%clk 0:29:56]} 20... Bf6 {[%clk
0:26:02]} 21. Re3 {[%clk 0:27:43]} 21... Rfe8 {[%clk 0:23:30]} 22. Qg4 {[%clk
0:22:37]} 22... Be6 {[%clk 0:18:43]} 23. Qe4 {[%clk 0:15:21]} 23... Qxe4 {[%clk
0:19:00]} 24. Bxe4 {[%clk 0:15:45]} 24... Bc4 {[%clk 0:18:44]} 25. Bf3 {[%clk
0:15:35]} 25... Bd3 {[%clk 0:17:12]} 26. Rxe8+ {[%clk 0:13:32]} 26... Rxe8
{[%clk 0:17:36]} 27. Bd2 {[%clk 0:13:59]} 27... h6 {[%clk 0:16:26]} 28. g3
{[%clk 0:11:40]} 28... Bc2 {[%clk 0:12:26]} 29. h4 {[%clk 0:10:28]} 29... Rd8
{[%clk 0:11:47]} 30. Be1 {[%clk 0:10:34]} 30... c5 {[%clk 0:11:41]} 31. Be2
{[%clk 0:09:25]} 31... Rd6 {[%clk 0:09:13]} 32. Kf1 {[%clk 0:08:15]} 32... Bf5
{[%clk 0:05:11]} 33. Rd1 {[%clk 0:05:33]} 33... Rxd1 {[%clk 0:03:36]} 34. Bxd1
{[%clk 0:05:58]} 34... Bh3+ {[%clk 0:02:17]} 35. Ke2 {[%clk 0:04:45]} 35... Bg4+
{[%clk 0:01:55]} 36. f3 {[%clk 0:05:09]} 36... Be6 {[%clk 0:02:23]} 37. Bf2
{[%clk 0:05:00]} 37... Be7 {[%clk 0:02:40]} 38. Kd2 {[%clk 0:03:54]} 38... c4
{[%clk 0:02:08]} 39. f4 {[%clk 0:03:29]} 39... Bd5 {[%clk 0:01:57]} 40. Bg4
{[%clk 0:03:33]} 40... Bc6 {[%clk 0:01:58]} 41. Bc8 {[%clk 0:03:34]} 41... Bb5
{[%clk 0:02:25]} 42. Bb7 {[%clk 0:03:26]} 42... Bd6 {[%clk 0:02:42]} 43. Bd5
{[%clk 0:03:37]} 43... Kf8 {[%clk 0:02:51]} 44. h5 {[%clk 0:01:54]} 44... g6
{[%clk 0:03:04]} 45. hxg6 {[%clk 0:01:58]} 45... fxg6 {[%clk 0:03:33]} 46. Be3
{[%clk 0:02:14]} 46... h5 {[%clk 0:03:02]} 47. Ke2 {[%clk 0:02:18]} 47... Be7
{[%clk 0:02:45]} 48. Bd4 {[%clk 0:01:48]} 48... g5 {[%clk 0:02:01]} 49. f5
{[%clk 0:01:15]} 49... Bd6 {[%clk 0:01:55]} 50. f6 {[%clk 0:01:22]} 50... h4
{[%clk 0:02:22]} 51. g4 {[%clk 0:01:43]} 51... h3 {[%clk 0:02:11]} 52. Be3
{[%clk 0:01:34]} 52... Bd7 {[%clk 0:01:37]} 53. Bxg5 {[%clk 0:01:48]} 53...
Bxg4+ {[%clk 0:02:02]} 54. Kf2 {[%clk 0:02:10]} 54... Bh5 {[%clk 0:01:38]} 55.
Bxc4 {[%clk 0:01:58]} 55... Bf7 {[%clk 0:01:53]} 56. Bf1 {[%clk 0:00:49]} 56...
Be6 {[%clk 0:02:22]} 57. Bh4 {[%clk 0:00:40]} 57... Bf5 {[%clk 0:01:56]} 58. Bg3
{[%clk 0:00:58]} 58... Bc5+ {[%clk 0:01:39]} 59. Ke1 {[%clk 0:01:09]} 59... Kf7
{[%clk 0:01:02]} 60. Bxa6 {[%clk 0:01:11]} 60... Ba3 {[%clk 0:00:32]} 61. Bc4+
{[%clk 0:00:37]} 61... Kxf6 {[%clk 0:00:56]} 62. Bxb3 {[%clk 0:00:51]} 62...
Bxb2 {[%clk 0:01:22]} 63. Kd2 {[%clk 0:01:11]} 63... Be4 {[%clk 0:01:26]} 64.
Bd6 {[%clk 0:01:15]} 64... Ba3 {[%clk 0:01:46]} 65. Bh2 {[%clk 0:01:27]} 65...
Ke7 {[%clk 0:01:41]} 66. Ke3 {[%clk 0:01:33]} 66... Bc6 {[%clk 0:01:37]} 67. Kf2
{[%clk 0:01:39]} 67... Bc5+ {[%clk 0:02:00]} 68. Kg3 {[%clk 0:01:28]} 1/2-1/2

[Variant "Standard"]
[Site "Europe Echecs"]

[Event "Championnat du monde jeunes U12"]
[Date "2024.11.22"]
[White "Aansh Nandan Nerurkar"]
[Black "Elhusseiny, Eyad"]
[WhiteElo "2247"]
[BlackElo "2017"]
[Round "7.10"]
[Result "1-0"]
[TimeControl "5400+30"]

1. e4 {[%clk 1:30:58]} 1... c5 {[%clk 1:30:49]} 2. Nc3 {[%clk 1:29:37]} 2... Nc6
{[%clk 1:30:42]} 3. Bb5 {[%clk 1:29:59]} 3... Nd4 {[%clk 1:30:53]} 4. Nf3 {[%clk
1:30:21]} 4... a6 {[%clk 1:29:27]} 5. Bd3 {[%clk 1:30:39]} 5... g6 {[%clk
1:28:36]} 6. Nxd4 {[%clk 1:29:18]} 6... cxd4 {[%clk 1:28:56]} 7. Ne2 {[%clk
1:29:43]} 7... Bg7 {[%clk 1:29:03]} 8. O-O {[%clk 1:29:50]} 8... d5 {[%clk
1:18:35]} 9. exd5 {[%clk 1:27:30]} 9... Qxd5 {[%clk 1:18:03]} 10. b3 {[%clk
1:27:04]} 10... Nh6 {[%clk 1:03:53]} 11. Ba3 {[%clk 1:26:02]} 11... Nf5 {[%clk
0:48:51]} 12. Re1 {[%clk 1:24:38]} 12... Qa5 {[%clk 0:44:47]} 13. Bb2 {[%clk
1:18:06]} 13... Qc5 {[%clk 0:42:46]} 14. Ng3 {[%clk 1:17:37]} 14... Nxg3 {[%clk
0:42:17]} 15. hxg3 {[%clk 1:16:54]} 15... O-O {[%clk 0:42:30]} 16. Qf3 {[%clk
1:16:08]} 16... e5 {[%clk 0:38:27]} 17. a4 {[%clk 1:15:26]} 17... Qc7 {[%clk
0:36:35]} 18. Ba3 {[%clk 1:14:11]} 18... Re8 {[%clk 0:36:04]} 19. g4 {[%clk
1:10:26]} 19... Be6 {[%clk 0:34:23]} 20. g5 {[%clk 1:09:53]} 20... Rad8 {[%clk
0:34:30]} 21. Qg3 {[%clk 1:07:01]} 21... Bd5 {[%clk 0:32:03]} 22. f3 {[%clk
1:06:56]} 22... Qc6 {[%clk 0:29:26]} 23. Qh4 {[%clk 1:06:01]} 23... f6 {[%clk
0:28:03]} 24. gxf6 {[%clk 1:06:02]} 24... Bxf6 {[%clk 0:25:20]} 25. Qg4 {[%clk
1:03:46]} 25... Be6 {[%clk 0:24:37]} 26. Qg3 {[%clk 1:03:02]} 26... Bd5 {[%clk
0:24:07]} 27. Re2 {[%clk 1:00:29]} 27... e4 {[%clk 0:21:44]} 28. fxe4 {[%clk
0:58:19]} 28... Bxe4 {[%clk 0:21:19]} 29. Rae1 {[%clk 0:58:30]} 29... Bxd3
{[%clk 0:21:20]} 30. Qxd3 {[%clk 0:58:52]} 30... Rxe2 {[%clk 0:20:27]} 31. Rxe2
{[%clk 0:58:34]} 31... Rc8 {[%clk 0:19:20]} 32. Qh3 {[%clk 0:54:10]} 32... Re8
{[%clk 0:18:11]} 33. Qf3 {[%clk 0:51:40]} 33... Rxe2 {[%clk 0:18:21]} 34. Qxe2
{[%clk 0:52:05]} 34... Kg7 {[%clk 0:17:33]} 35. Qd3 {[%clk 0:51:41]} 35... Qe6
{[%clk 0:17:43]} 36. Kf1 {[%clk 0:52:03]} 36... Qg4 {[%clk 0:17:37]} 37. Bd6
{[%clk 0:49:37]} 37... Qh5 {[%clk 0:11:57]} 38. Qe2 {[%clk 0:39:42]} 38... Qf5+
{[%clk 0:12:41]} 39. Ke1 {[%clk 0:39:19]} 39... Qd5 {[%clk 0:07:11]} 40. Be7
{[%clk 0:36:39]} 40... Qe5 {[%clk 0:04:43]} 41. Qxe5 {[%clk 0:36:23]} 41... Bxe5
{[%clk 0:05:07]} 42. Ke2 {[%clk 0:36:27]} 42... Kf7 {[%clk 0:05:32]} 43. Bc5
{[%clk 0:36:10]} 43... Ke6 {[%clk 0:05:56]} 44. Kd3 {[%clk 0:36:37]} 44... Kd5
{[%clk 0:06:18]} 45. Be7 {[%clk 0:36:42]} 45... h5 {[%clk 0:06:00]} 46. Bh4
{[%clk 0:35:48]} 46... Bg7 {[%clk 0:05:12]} 47. c4+ {[%clk 0:35:23]} 47... dxc3
{[%clk 0:05:34]} 48. dxc3 {[%clk 0:35:49]} 48... Bh8 {[%clk 0:03:42]} 49. c4+
{[%clk 0:35:35]} 49... Ke5 {[%clk 0:01:55]} 50. b4 {[%clk 0:35:24]} 50... Bg7
{[%clk 0:01:23]} 51. Bf2 {[%clk 0:33:58]} 51... Bf8 {[%clk 0:00:46]} 52. b5
{[%clk 0:33:34]} 52... axb5 {[%clk 0:01:10]} 53. cxb5 {[%clk 0:33:15]} 53... Bb4
54. Kc4 {[%clk 0:26:31]} 54... Ba5 {[%clk 0:00:38]} 55. b6 {[%clk 0:26:35]}
55... Ke6 {[%clk 0:00:34]} 56. Kb5 {[%clk 0:27:01]} 56... Bc3 {[%clk 0:00:54]}
57. a5 {[%clk 0:27:23]} 57... Be5 {[%clk 0:01:06]} 58. a6 {[%clk 0:25:26]} 58...
bxa6+ {[%clk 0:01:31]} 59. Kxa6 {[%clk 0:25:51]} 59... Kd7 {[%clk 0:01:19]} 60.
b7 {[%clk 0:21:33]} 60... Bb8 {[%clk 0:01:31]} 61. Kb6 {[%clk 0:21:13]} 61... g5
{[%clk 0:01:33]} 62. Be3 {[%clk 0:21:31]} 62... g4 {[%clk 0:01:40]} 63. Bg5
{[%clk 0:21:42]} 63... Bg3 {[%clk 0:01:40]} 64. Ka7 {[%clk 0:21:47]} 64... Ke6
{[%clk 0:01:41]} 65. Bh4 {[%clk 0:21:56]} 65... Be5 {[%clk 0:01:38]} 66. b8=Q
Bxb8+ {[%clk 0:01:59]} 67. Kxb8 {[%clk 0:22:40]} 67... g3 {[%clk 0:02:05]} 68.
Bxg3 {[%clk 0:23:07]} 68... Kf5 {[%clk 0:02:29]} 69. Bh4 {[%clk 0:23:37]} 69...
Kg4 {[%clk 0:02:37]} 70. g3 {[%clk 0:24:06]} 70... Kf3 {[%clk 0:02:57]} 71. Kc7
{[%clk 0:24:35]} 71... Ke4 {[%clk 0:03:21]} 72. Kd6 {[%clk 0:25:02]} 72... Kd4
{[%clk 0:03:37]} 73. Ke6 {[%clk 0:25:28]} 73... Ke4 {[%clk 0:04:00]} 74. Kf6
{[%clk 0:25:54]} 74... Kf3 {[%clk 0:04:27]} 75. Kg6 {[%clk 0:26:19]} 75... Kg4
{[%clk 0:04:52]} 76. Kh6 {[%clk 0:26:43]} 1-0

[Variant "Standard"]
[Site "Europe Echecs"]

[Event "Championnat du monde jeunes U12"]
[Date "2024.11.22"]
[White "Tatvidze, Davit"]
[Black "Guo, Ethan"]
[WhiteElo "2024"]
[BlackElo "2157"]
[Round "7.11"]
[Result "1/2-1/2"]
[TimeControl "5400+30"]

1. c4 {[%clk 1:30:57]} 1... Nf6 {[%clk 1:30:57]} 2. Nf3 {[%clk 1:31:21]} 2... c5
{[%clk 1:31:01]} 3. Nc3 {[%clk 1:31:40]} 3... e6 {[%clk 1:31:07]} 4. d4 {[%clk
1:30:44]} 4... cxd4 {[%clk 1:30:02]} 5. Nxd4 {[%clk 1:30:35]} 5... Bb4 {[%clk
1:30:04]} 6. g3 {[%clk 1:12:30]} 6... O-O {[%clk 1:22:40]} 7. Bg2 {[%clk
0:47:47]} 7... d5 {[%clk 1:12:51]} 8. Qb3 {[%clk 0:43:41]} 8... Bxc3+ {[%clk
1:06:56]} 9. bxc3 {[%clk 0:42:59]} 9... e5 {[%clk 1:05:34]} 10. Nc2 {[%clk
0:40:09]} 10... dxc4 {[%clk 1:03:29]} 11. Qxc4 {[%clk 0:39:55]} 11... Nc6 {[%clk
0:50:57]} 12. O-O {[%clk 0:36:52]} 12... Be6 {[%clk 0:47:46]} 13. Qb5 {[%clk
0:28:10]} 13... Qc7 {[%clk 0:47:56]} 14. Nb4 {[%clk 0:20:19]} 14... Na5 {[%clk
0:45:39]} 15. Bg5 {[%clk 0:17:30]} 15... a6 {[%clk 0:32:41]} 16. Qa4 {[%clk
0:15:48]} 16... Nd7 {[%clk 0:32:45]} 17. Nd5 {[%clk 0:13:35]} 17... Bxd5 {[%clk
0:33:11]} 18. Bxd5 {[%clk 0:14:01]} 18... h6 {[%clk 0:33:14]} 19. Be7 {[%clk
0:05:13]} 19... Nc5 {[%clk 0:33:06]} 20. Bxc5 {[%clk 0:05:21]} 20... Qxc5 {[%clk
0:33:24]} 21. c4 {[%clk 0:04:49]} 21... Rac8 {[%clk 0:33:04]} 22. Rab1 {[%clk
0:03:11]} 22... Rc7 {[%clk 0:32:20]} 23. Qb4 {[%clk 0:01:19]} 23... Nxc4 {[%clk
0:28:51]} 24. Qxc5 {[%clk 0:00:56]} 24... Rxc5 {[%clk 0:29:14]} 25. Bxb7 {[%clk
0:00:43]} 25... Ra5 {[%clk 0:27:23]} 26. Rfc1 {[%clk 0:00:41]} 26... Nd6 {[%clk
0:27:28]} 27. Bf3 {[%clk 0:00:38]} 27... Rxa2 {[%clk 0:27:04]} 28. Ra1 {[%clk
0:00:43]} 28... Rxa1 {[%clk 0:27:18]} 29. Rxa1 {[%clk 0:01:08]} 29... e4 {[%clk
0:26:37]} 30. Bg2 {[%clk 0:01:34]} 30... Rb8 {[%clk 0:26:28]} 31. e3 {[%clk
0:00:48]} 31... Rb6 {[%clk 0:26:52]} 32. Bf1 {[%clk 0:01:05]} 32... Nb5 {[%clk
0:26:56]} 33. Rc1 {[%clk 0:00:49]} 33... g6 {[%clk 0:25:45]} 34. g4 {[%clk
0:00:43]} 34... Kg7 {[%clk 0:25:45]} 35. Kg2 {[%clk 0:00:38]} 35... f5 {[%clk
0:25:59]} 36. gxf5 {[%clk 0:00:55]} 36... gxf5 {[%clk 0:26:28]} 37. Kg3 {[%clk
0:00:42]} 37... Kf6 {[%clk 0:26:13]} 38. Kf4 {[%clk 0:00:53]} 38... Nd6 {[%clk
0:26:31]} 39. Ra1 {[%clk 0:01:05]} 39... Rb2 {[%clk 0:24:05]} 40. Kg3 {[%clk
0:00:42]} 40... h5 {[%clk 0:23:18]} 41. Rxa6 {[%clk 0:00:51]} 41... Ke5 {[%clk
0:22:59]} 42. h4 {[%clk 0:00:53]} 42... Rd2 {[%clk 0:22:45]} 43. Ra5+ {[%clk
0:00:55]} 43... Kf6 {[%clk 0:22:33]} 1/2-1/2

[Variant "Standard"]
[Site "Europe Echecs"]

[Event "Championnat du monde jeunes U12"]
[Date "2024.11.22"]
[White "Shilon Rahav, Eliran"]
[Black "Stepanyan, Davit"]
[WhiteElo "2150"]
[BlackElo "2011"]
[Round "7.12"]
[Result "0-1"]
[TimeControl "5400+30"]

1. e4 {[%clk 1:30:58]} 1... c5 {[%clk 1:30:53]} 2. Nf3 {[%clk 1:31:02]} 2... Nc6
{[%clk 1:31:20]} 3. Bb5 {[%clk 1:31:12]} 3... g6 {[%clk 1:31:16]} 4. Bxc6 {[%clk
1:31:22]} 4... dxc6 {[%clk 1:31:38]} 5. d3 {[%clk 1:30:46]} 5... Bg7 {[%clk
1:31:56]} 6. Nc3 {[%clk 1:29:00]} 6... c4 {[%clk 1:31:51]} 7. d4 {[%clk
1:16:19]} 7... b5 {[%clk 1:23:10]} 8. Be3 {[%clk 1:13:45]} 8... Nf6 {[%clk
1:22:50]} 9. Ne5 {[%clk 1:08:30]} 9... Bb7 {[%clk 1:20:00]} 10. Qf3 {[%clk
1:07:26]} 10... O-O {[%clk 1:07:30]} 11. O-O-O {[%clk 1:04:13]} 11... Qa5 {[%clk
1:06:29]} 12. a3 {[%clk 0:59:24]} 12... Rad8 {[%clk 0:56:58]} 13. h4 {[%clk
0:55:31]} 13... c5 {[%clk 0:49:28]} 14. dxc5 {[%clk 0:52:49]} 14... Rxd1+ {[%clk
0:48:56]} 15. Rxd1 {[%clk 0:52:42]} 15... Nxe4 {[%clk 0:48:31]} 16. Nxe4 {[%clk
0:51:05]} 16... Bxe5 {[%clk 0:48:20]} 17. Nf6+ {[%clk 0:49:52]} 17... exf6
{[%clk 0:48:10]} 18. Qxb7 {[%clk 0:49:41]} 18... Rb8 {[%clk 0:47:34]} 19. Qe7
{[%clk 0:47:53]} 19... c3 {[%clk 0:45:53]} 20. c6 {[%clk 0:41:02]} 20... cxb2+
{[%clk 0:41:08]} 21. Kb1 {[%clk 0:41:16]} 21... Kg7 {[%clk 0:38:00]} 22. f4
{[%clk 0:35:12]} 22... Re8 {[%clk 0:36:42]} 23. Qc5 {[%clk 0:17:12]} 23... Bb8
{[%clk 0:16:08]} 24. Kxb2 {[%clk 0:14:03]} 24... Re4 {[%clk 0:10:50]} 25. Bd2
{[%clk 0:09:30]} 25... Qd8 {[%clk 0:09:02]} 26. Qxb5 {[%clk 0:05:23]} 26... Bxf4
{[%clk 0:01:39]} 27. Qd3 {[%clk 0:00:38]} 27... Rd4 {[%clk 0:00:34]} 28. c7
{[%clk 0:00:37]} 28... Qxc7 {[%clk 0:00:39]} 29. Qxd4 {[%clk 0:00:34]} 29... Be5
{[%clk 0:01:05]} 30. Bc3 {[%clk 0:00:58]} 30... Bxd4 {[%clk 0:01:28]} 31. Rxd4
{[%clk 0:01:27]} 31... Qb7+ {[%clk 0:01:43]} 32. Rb4 {[%clk 0:00:41]} 32... Qxg2
{[%clk 0:02:00]} 33. Bd4 {[%clk 0:01:11]} 33... a5 34. Rb6 {[%clk 0:01:40]}
34... Qd5 {[%clk 0:02:03]} 35. Bxf6+ {[%clk 0:01:43]} 35... Kh6 {[%clk 0:02:12]}
36. Bc3 {[%clk 0:00:42]} 36... f5 {[%clk 0:02:10]} 37. a4 {[%clk 0:00:52]} 37...
Qc4 {[%clk 0:02:17]} 38. Rb7 {[%clk 0:00:41]} 38... Qxa4 {[%clk 0:02:05]} 39.
Bd2+ {[%clk 0:01:05]} 39... f4 {[%clk 0:01:17]} 40. Rf7 {[%clk 0:01:33]} 40...
Qd4+ {[%clk 0:01:40]} 41. Bc3 {[%clk 0:01:55]} 41... Qb6+ {[%clk 0:01:51]} 42.
Kc1 {[%clk 0:01:49]} 42... a4 {[%clk 0:00:35]} 43. Rxf4 {[%clk 0:02:02]} 43...
a3 {[%clk 0:00:43]} 44. Ra4 {[%clk 0:01:47]} 44... Qg1+ {[%clk 0:00:37]} 45. Kd2
{[%clk 0:02:16]} 45... Kh5 {[%clk 0:00:34]} 46. Rxa3 {[%clk 0:02:24]} 46... Kxh4
{[%clk 0:00:37]} 47. Ra4+ {[%clk 0:02:54]} 47... Kh5 {[%clk 0:00:39]} 48. Bd4
{[%clk 0:03:00]} 48... Qg2+ {[%clk 0:00:40]} 49. Kc1 {[%clk 0:03:30]} 49... g5
{[%clk 0:00:51]} 50. Be3 {[%clk 0:02:37]} 50... g4 {[%clk 0:00:45]} 51. Ra7
{[%clk 0:01:53]} 51... Qe4 {[%clk 0:00:51]} 52. Kd2 {[%clk 0:01:55]} 52... Kh4
{[%clk 0:00:53]} 53. Rd7 {[%clk 0:01:13]} 53... h5 {[%clk 0:01:06]} 54. Rd4
{[%clk 0:01:41]} 54... Qg2+ {[%clk 0:01:13]} 55. Kd1 {[%clk 0:01:55]} 55... Kh3
{[%clk 0:01:25]} 56. c3 {[%clk 0:00:33]} 56... g3 {[%clk 0:01:29]} 57. Bg5
{[%clk 0:00:32]} 57... Qf1+ {[%clk 0:01:51]} 58. Kd2 {[%clk 0:00:51]} 58... Qf2+
{[%clk 0:02:16]} 59. Kd3 {[%clk 0:00:48]} 59... g2 {[%clk 0:02:36]} 60. Be3
{[%clk 0:00:40]} 60... Qxe3+ {[%clk 0:02:56]} 61. Kxe3 {[%clk 0:01:10]} 61...
g1=Q+ {[%clk 0:03:02]} 62. Ke4 {[%clk 0:01:31]} 62... h4 {[%clk 0:03:17]} 63. c4
{[%clk 0:01:57]} 63... Kg3 {[%clk 0:03:16]} 64. c5 {[%clk 0:02:11]} 64... h3
{[%clk 0:03:38]} 65. Rd3+ {[%clk 0:01:33]} 65... Kg4 {[%clk 0:03:56]} 66. Rxh3
{[%clk 0:01:05]} 66... Kxh3 {[%clk 0:04:16]} 67. Kd5 {[%clk 0:01:34]} 67... Qg5+
{[%clk 0:04:37]} 68. Kd6 {[%clk 0:01:58]} 68... Qd8+ {[%clk 0:05:00]} 69. Kc6
{[%clk 0:02:20]} 69... Qc8+ {[%clk 0:05:23]} 70. Kb6 {[%clk 0:02:49]} 70... Kg4
{[%clk 0:05:47]} 0-1

[Variant "Standard"]
[Site "Europe Echecs"]